bitfinex-derivatives/quotes_BTCF0:USTF0_20260107
["timestamp","ask_amount","ask_price","bid_price","bid_amount"]
[1767746830540,0.19458175,93240.0,93230.0,0.01073]
[1767746831942,0.19458175,93246.0,93234.0,0.01073]
[1767746832239,0.28586175,93245.0,93231.0,0.01073]
[1767746832441,0.19458175,93244.0,93231.0,0.01073]
[1767746832934,0.19458175,93243.0,93231.0,0.01073]
[1767746833143,0.19458175,93241.0,93230.0,0.01073]
[1767746833734,0.18962238,93245.0,93232.0,0.01073]
[1767746833930,0.09128,93245.0,93234.0,0.01073]
[1767746834336,0.28586175,93245.0,93234.0,0.01073]
[1767746835038,0.28586175,93245.0,93224.0,0.09634374]
[1767746835237,0.18962238,93245.0,93225.0,0.09634374]
[1767746835544,0.7602035,93259.0,93231.0,0.09634374]
[1767746835545,0.09834238,93252.0,93231.0,0.09634374]
[1767746835731,0.09128,93256.0,93252.0,0.010728]
[1767746835933,0.09128,93256.0,93240.0,0.010729]
[1767746836529,5e-07,93259.0,93256.0,0.010727]
[1767746836732,0.09623937,93262.0,93251.0,0.010728]
[1767746836928,0.09623937,93262.0,93246.0,0.010729]
[1767746837639,0.09834238,93259.0,93237.0,0.09128]
[1767746837838,0.09834238,93257.0,93229.0,0.010731]
[1767746838043,0.09834238,93255.0,93229.0,0.010731]
[1767746838244,0.09623937,93252.0,93236.0,0.01073]
[1767746838435,0.09128,93251.0,93242.0,0.010729]
[1767746838639,0.18751937,93254.0,93242.0,0.010729]
[1767746838841,0.18751937,93254.0,93231.0,0.19611944]
[1767746839042,0.18751937,93254.0,93239.0,0.010729]
[1767746840445,0.19458175,93253.0,93239.0,0.010729]
[1767746840639,0.09623937,93250.0,93227.0,0.09634374]
[1767746840844,0.09623937,93249.0,93227.0,0.09634374]
[1767746841035,0.09834238,93247.0,93224.0,0.09128]
[1767746841231,0.09834238,93245.0,93225.0,0.010731]
[1767746841433,0.010729,93248.0,93224.0,0.09128]
[1767746841434,0.09834238,93243.0,93227.0,0.010731]
[1767746841639,0.09623937,93242.0,93227.0,0.010731]
[1767746842036,0.09623937,93242.0,93229.0,0.010731]
[1767746842639,0.09623937,93242.0,93226.0,0.010731]
[1767746843450,0.09623937,93242.0,93223.0,0.102011]
[1767746843647,0.09623937,93239.0,93220.0,0.010732]
[1767746843841,0.02330637,93237.0,93220.0,0.010732]
[1767746844041,0.02330637,93235.0,93220.0,0.010732]
[1767746845145,0.02330637,93235.0,93219.0,0.09128]
[1767746845146,0.02070168,93231.0,93219.0,0.09128]
[1767746845348,0.02070168,93229.0,93219.0,0.09128]
[1767746845846,0.02070168,93229.0,93214.0,0.010732]
[1767746846451,0.02070168,93229.0,93216.0,0.010732]
[1767746848655,0.09834238,93230.0,93220.0,0.010732]
[1767746849243,0.09834238,93230.0,93216.0,0.010732]
[1767746849439,0.09834238,93230.0,93218.0,0.010732]
[1767746850846,0.09834238,93230.0,93220.0,0.010732]
[1767746851154,0.09834238,93230.0,93217.0,0.010732]
[1767746851846,0.09834238,93230.0,93214.0,0.010732]
[1767746852148,0.01856785,93223.0,93211.0,0.101973]
[1767746852460,0.01856785,93223.0,93210.0,0.010733]
[1767746852749,0.01856785,93223.0,93212.0,0.010733]
[1767746852956,0.01856785,93223.0,93209.0,0.01287873]
[1767746853145,0.01856785,93223.0,93211.0,0.010733]
[1767746853347,0.00783485,93212.0,93190.0,0.010735]
[1767746853545,0.00783485,93212.0,93191.0,0.18840771]
[1767746853751,0.09782684,93213.0,93203.0,0.010734]
[1767746854248,0.00930844,93210.0,93198.0,0.010734]
[1767746854653,0.00930844,93210.0,93189.0,0.004164]
[1767746855052,0.00930844,93210.0,93198.0,0.010734]
[1767746855243,0.10722128,93208.0,93190.0,0.09128]
[1767746855448,0.10722128,93203.0,93190.0,0.09128]
[1767746855750,0.00939444,93202.0,93191.0,0.010735]
[1767746856052,0.00939444,93202.0,93193.0,0.010735]
[1767746856252,0.00412512,93208.0,93193.0,0.010735]
[1767746856455,0.00412512,93207.0,93190.0,0.102015]
[1767746856653,0.00412512,93206.0,93192.0,0.010735]
[1767746857256,0.00412512,93206.0,93190.0,0.09128]
[1767746857957,0.00412512,93205.0,93190.0,0.09128]
[1767746858352,0.00301732,93201.0,93186.0,0.010736]
[1767746858557,0.00301732,93199.0,93186.0,0.010736]
[1767746858958,0.09782684,93200.0,93186.0,0.010736]
[1767746859252,0.00301732,93203.0,93183.0,0.18325947]
[1767746859455,0.10084416,93207.0,93188.0,0.010735]
[1767746859656,0.10084416,93207.0,93185.0,0.19914371]
[1767746860454,0.010733,93206.0,93185.0,0.19914371]
[1767746861051,0.010733,93206.0,93187.0,0.010735]
[1767746861251,0.10084416,93207.0,93187.0,0.010735]
[1767746861561,0.10084416,93207.0,93183.0,0.09128]
[1767746861562,0.00355934,93202.0,93184.0,0.010736]
[1767746862057,0.09782684,93203.0,93184.0,0.010736]
[1767746862252,0.10856084,93203.0,93184.0,0.010736]
[1767746862855,0.09782684,93203.0,93187.0,0.010735]
[1767746864556,0.09782684,93203.0,93183.0,0.09128]
[1767746864557,0.09782684,93203.0,93184.0,0.010736]
[1767746864753,0.09782684,93203.0,93184.0,0.09197947]
[1767746864952,0.01429234,93206.0,93184.0,0.18840771]
[1767746865353,0.00355934,93206.0,93189.0,0.010735]
[1767746865762,0.00355934,93206.0,93187.0,0.010735]
[1767746865967,0.09128,93208.0,93192.0,0.18840771]
[1767746866272,0.09128,93208.0,93195.0,0.010734]
[1767746866453,0.09782684,93226.0,93203.0,0.09197947]
[1767746866660,0.19310791,93239.0,93209.0,0.09197947]
[1767746866661,0.09128,93229.0,93209.0,0.09197947]
[1767746866859,0.09128,93229.0,93223.0,0.010731]
[1767746867057,0.09128,93229.0,93209.0,0.09197947]
[1767746867258,0.00684674,93226.0,93204.0,0.09197947]
[1767746867466,0.00684674,93226.0,93214.0,0.010732]
[1767746867761,0.00684674,93226.0,93204.0,0.09197947]
[1767746868263,0.00684674,93226.0,93215.0,0.010732]
[1767746868956,0.00684674,93226.0,93219.0,0.010732]
[1767746869173,0.00684674,93226.0,93216.0,0.010732]
[1767746870367,0.00684674,93226.0,93206.0,0.010733]
[1767746870957,0.00684674,93226.0,93220.0,0.010732]
[1767746871464,0.00684674,93226.0,93217.0,0.010732]
[1767746871966,0.00684674,93226.0,93208.0,0.010733]
[1767746871967,0.09128,93227.0,93211.0,0.010733]
[1767746872160,0.09128,93227.0,93216.0,0.09642824]
[1767746872361,0.00563846,93226.0,93206.0,0.010733]
[1767746872665,0.09128,93228.0,93220.0,0.010732]
[1767746872861,0.09782684,93238.0,93212.0,0.19914071]
[1767746873069,0.18910684,93237.0,93212.0,0.19914071]
[1767746873461,0.09782684,93236.0,93223.0,0.010731]
[1767746873661,0.09782684,93236.0,93212.0,0.19914071]
[1767746873970,0.18910684,93235.0,93212.0,0.19914071]
[1767746874477,0.18910684,93235.0,93214.0,0.09197947]
[1767746874867,0.18910684,93235.0,93224.0,0.010731]
[1767746875070,0.18910684,93235.0,93214.0,0.09197947]
[1767746875363,0.09782684,93234.0,93219.0,0.010732]
[1767746875670,0.09782684,93234.0,93210.0,0.09197947]
[1767746876069,0.09782684,93234.0,93220.0,0.010732]
[1767746876474,0.09128,93233.0,93213.0,0.09197947]
[1767746876664,0.09782684,93233.0,93221.0,0.010732]
[1767746876864,0.09128,93232.0,93221.0,0.010732]
[1767746877368,0.09128,93231.0,93223.0,0.010731]
[1767746877865,0.09782684,93238.0,93220.0,0.010732]
[1767746878065,0.09128,93233.0,93220.0,0.010732]
[1767746879072,0.09128,93233.0,93217.0,0.010732]
[1767746879464,0.18888284,93233.0,93217.0,0.010732]
[1767746880469,0.0984033,93232.0,93214.0,0.010732]
[1767746880675,0.09674533,93230.0,93214.0,0.010732]
[1767746881875,0.09612999,93224.0,93205.0,0.18711294]
[1767746882270,0.09612999,93224.0,93211.0,0.010733]
[1767746882573,0.09612999,93224.0,93212.0,0.010732]
[1767746882774,0.09447202,93224.0,93214.0,0.010732]
[1767746882963,0.09447202,93230.0,93218.0,0.010732]
[1767746883576,0.09447202,93230.0,93207.0,0.0005419]
[1767746883873,0.09447202,93230.0,93219.0,0.010732]
[1767746884463,0.09447202,93230.0,93216.0,0.010732]
[1767746885577,0.09447202,93230.0,93210.0,0.0068332]
[1767746885975,0.09447202,93230.0,93210.0,0.10266614]
[1767746886174,0.09447202,93230.0,93216.0,0.010732]
[1767746887279,0.09447202,93230.0,93210.0,0.10266614]
[1767746887681,0.09447202,93230.0,93220.0,0.010732]
[1767746888388,0.09447202,93230.0,93205.0,0.01955593]
[1767746888681,0.09447202,93230.0,93219.0,0.010732]
[1767746889181,0.09447202,93230.0,93207.0,0.010733]
[1767746889372,0.09447202,93229.0,93215.0,0.010732]
[1767746889774,0.09447202,93229.0,93217.0,0.010732]
[1767746890882,0.09447202,93229.0,93208.0,0.09583294]
[1767746890883,0.19158094,93229.0,93208.0,0.09583294]
[1767746891384,0.19158094,93229.0,93215.0,0.010732]
[1767746891572,0.09447202,93228.0,93205.0,0.11656406]
[1767746891777,0.09447202,93228.0,93206.0,0.09128]
[1767746892283,0.09447202,93228.0,93216.0,0.010732]
[1767746892785,0.09447202,93228.0,93206.0,0.09128]
[1767746893284,0.09447202,93228.0,93218.0,0.010732]
[1767746894888,0.09447202,93228.0,93219.0,0.010732]
[1767746895378,0.09447202,93228.0,93209.0,0.09583294]
[1767746895689,0.09447202,93228.0,93218.0,0.010732]
[1767746896777,0.09447202,93227.0,93218.0,0.010732]
[1767746897288,0.09447202,93226.0,93213.0,0.010732]
[1767746897484,0.09447202,93225.0,93213.0,0.010732]
[1767746898187,0.09447202,93224.0,93213.0,0.010732]
[1767746898383,0.19158094,93224.0,93206.0,0.09128]
[1767746898583,0.09447202,93223.0,93211.0,0.010733]
[1767746898783,0.09447202,93222.0,93211.0,0.010733]
[1767746899589,0.09447202,93222.0,93206.0,0.09128]
[1767746899990,0.09447202,93222.0,93213.0,0.010732]
[1767746900485,0.09447202,93222.0,93217.0,0.010732]
[1767746900692,0.09710892,93227.0,93209.0,0.10656594]
[1767746901285,0.09710892,93227.0,93207.0,0.010733]
[1767746901481,0.09710892,93227.0,93207.0,0.09583294]
[1767746901682,0.10783992,93227.0,93213.0,0.010732]
[1767746901882,0.10783992,93227.0,93206.0,0.09128]
[1767746902585,0.09710892,93224.0,93206.0,0.09128]
[1767746902889,0.09710892,93224.0,93210.0,0.010733]
[1767746903686,0.19158094,93224.0,93210.0,0.010733]
[1767746905078,0.09710892,93223.0,93210.0,0.010733]
[1767746905892,0.09710892,93223.0,93211.0,0.010733]
[1767746906482,0.09710892,93223.0,93206.0,0.09128]
[1767746906681,0.09447202,93224.0,93206.0,0.09128]
[1767746906891,0.09710892,93226.0,93207.0,0.09583294]
[1767746907377,0.010732,93215.0,93206.0,0.09128]
[1767746907583,0.09710892,93204.0,93189.0,0.20858]
[1767746907782,0.010732,93218.0,93181.0,0.09700813]
[1767746907783,0.19158094,93201.0,93187.0,0.010735]
[1767746908585,0.19158094,93201.0,93189.0,0.010735]
[1767746909695,0.19158094,93201.0,93186.0,0.010735]
[1767746909992,0.19158094,93201.0,93188.0,0.010735]
[1767746910585,0.19158094,93201.0,93182.0,0.18711294]
[1767746911095,0.19158094,93200.0,93185.0,0.010736]
[1767746911296,0.19158094,93200.0,93182.0,0.09128]
[1767746912296,0.19158094,93200.0,93186.0,0.010735]
[1767746912991,0.010734,93197.0,93182.0,0.09128]
[1767746913181,0.010734,93197.0,93181.0,0.010736]
[1767746913182,0.09721454,93194.0,93178.0,0.010736]
[1767746913386,0.09115708,93192.0,93180.0,0.010736]
[1767746913896,0.10987663,93192.0,93177.0,0.010736]
[1767746914287,0.09721454,93189.0,93177.0,0.010737]
[1767746914486,0.18837162,93189.0,93175.0,0.09128]
[1767746915083,0.09115708,93188.0,93175.0,0.102017]
[1767746915492,0.09115708,93188.0,93177.0,0.010737]
[1767746915692,0.18837162,93188.0,93177.0,0.010737]
[1767746916089,0.18837162,93188.0,93175.0,0.09128]
[1767746916484,0.18837162,93188.0,93175.0,0.102017]
[1767746916689,0.09115708,93187.0,93177.0,0.010737]
[1767746916990,0.09115708,93187.0,93175.0,0.102017]
[1767746917188,0.09115708,93187.0,93177.0,0.010737]
[1767746917391,0.09115708,93187.0,93179.0,0.010736]
[1767746918088,0.09115708,93187.0,93176.0,0.010737]
[1767746918605,0.09721454,93185.0,93175.0,0.09128]
[1767746918793,0.09721454,93185.0,93157.0,0.010739]
[1767746918794,0.09115708,93182.0,93167.0,0.102018]
[1767746918999,0.18837162,93181.0,93171.0,0.010737]
[1767746919202,0.09128,93190.0,93160.0,0.09128]
[1767746919203,0.09115708,93179.0,93168.0,0.010738]
[1767746919395,0.09115708,93177.0,93168.0,0.010738]
[1767746919594,0.09115708,93176.0,93160.0,0.09128]
[1767746919797,0.18837162,93174.0,93163.0,0.010738]
[1767746919996,0.09115708,93173.0,93163.0,0.010738]
[1767746920200,0.18837162,93169.0,93158.0,0.00010579]
[1767746920407,0.18837162,93167.0,93161.0,0.010738]
[1767746920597,6.2e-07,93167.0,93158.0,0.00010579]
[1767746920896,6.2e-07,93167.0,93158.0,0.01084479]
[1767746921099,6.2e-07,93167.0,93158.0,0.00010579]
[1767746923599,0.0911577,93167.0,93158.0,0.00010579]
[1767746924293,0.09115708,93165.0,93154.0,0.010739]
[1767746924497,0.09721454,93166.0,93154.0,0.010739]
[1767746925100,0.09721454,93166.0,93151.0,0.09128]
[1767746925300,8.671e-05,93165.0,93153.0,0.010739]
[1767746925600,0.09115708,93164.0,93153.0,0.010739]
[1767746925802,0.09124379,93165.0,93151.0,0.09128]
[1767746926012,0.09115708,93164.0,93151.0,0.09128]
[1767746926202,0.09115708,93164.0,93149.0,0.00214711]
[1767746926203,0.09115708,93162.0,93149.0,0.00214711]
[1767746926398,0.09050976,93156.0,93146.0,0.02044888]
[1767746926700,0.09061299,93155.0,93143.0,0.01074]
[1767746927206,0.09061299,93155.0,93145.0,0.01074]
[1767746927403,0.09061299,93155.0,93141.0,0.09132]
[1767746927602,0.09721454,93170.0,93149.0,0.09608574]
[1767746927798,0.09132,93175.0,93163.0,0.010738]
[1767746927998,0.09132,93174.0,93163.0,0.010738]
[1767746928308,0.09132,93179.0,93162.0,0.19565901]
[1767746928505,0.09132,93179.0,93149.0,0.01074]
[1767746928506,0.0687048,93176.0,93160.0,0.010738]
[1767746928703,0.0687048,93174.0,93160.0,0.010738]
[1767746928902,0.09132,93179.0,93154.0,0.09132]
[1767746928903,0.0687048,93165.0,93154.0,0.09132]
[1767746929402,0.0687048,93165.0,93155.0,0.010739]
[1767746929607,0.0687048,93165.0,93151.0,0.01074]
[1767746931009,0.0687048,93165.0,93148.0,0.01074]
[1767746931211,0.05288774,93160.0,93145.0,0.01074]
[1767746931708,0.05288774,93160.0,93147.0,0.01074]
[1767746932408,0.05288774,93160.0,93142.0,0.09132]
[1767746932608,0.14355778,93160.0,93142.0,0.09132]
[1767746932810,0.05188405,93158.0,93148.0,0.01074]
[1767746933005,0.05188405,93158.0,93142.0,0.09132]
[1767746933199,0.05188405,93158.0,93150.0,0.01074]
[1767746933407,0.05178357,93162.0,93150.0,0.01074]
[1767746933810,0.05178357,93162.0,93142.0,0.09132]
[1767746933811,0.05178357,93161.0,93147.0,0.01074]
[1767746934213,0.05178357,93161.0,93149.0,0.01074]
[1767746935013,0.09067004,93160.0,93149.0,0.01074]
[1767746935211,0.0534906,93163.0,93143.0,0.09957327]
[1767746935510,0.09132,93169.0,93142.0,0.09132]
[1767746935511,0.0534906,93168.0,93157.0,0.010739]
[1767746935703,0.09132,93167.0,93157.0,0.010739]
[1767746935898,0.09132,93167.0,93150.0,0.09067004]
[1767746935899,0.09132,93167.0,93158.0,0.010739]
[1767746936213,0.09132,93167.0,93155.0,0.010739]
[1767746936610,0.09132,93167.0,93157.0,0.010739]
[1767746936813,0.0534906,93172.0,93157.0,0.010739]
[1767746937017,0.09132,93171.0,93151.0,0.09608574]
[1767746937207,0.05192574,93169.0,93156.0,0.010739]
[1767746937612,0.05192574,93168.0,93156.0,0.010739]
[1767746937811,0.05192574,93168.0,93148.0,0.09608574]
[1767746938011,0.05192574,93168.0,93155.0,0.010739]
[1767746938616,0.09067004,93170.0,93152.0,0.010739]
[1767746938617,0.05170534,93164.0,93152.0,0.010739]
[1767746938801,0.09007452,93160.0,93149.0,0.01074]
[1767746939008,0.05170534,93159.0,93149.0,0.01074]
[1767746939208,0.05170534,93159.0,93151.0,0.01074]
[1767746939417,0.09132,93167.0,93144.0,0.10459118]
[1767746939616,0.09132,93167.0,93154.0,0.010739]
[1767746940007,0.09132,93167.0,93144.0,0.19757072]
[1767746940208,0.09067004,93170.0,93154.0,0.010739]
[1767746940406,0.09007452,93168.0,93144.0,0.15429972]
[1767746940613,0.09007452,93168.0,93154.0,0.010739]
[1767746940816,0.09007452,93168.0,93145.0,0.01074]
[1767746941010,0.09007452,93168.0,93155.0,0.010739]
[1767746941215,0.09007452,93178.0,93153.0,0.10371854]
[1767746941415,0.00640591,93176.0,93162.0,0.010738]
[1767746941614,0.00640591,93175.0,93164.0,0.010738]
[1767746941817,0.09132,93174.0,93165.0,0.010738]
[1767746942020,0.09132,93174.0,93162.0,0.010738]
[1767746942222,0.09132,93174.0,93164.0,0.010738]
[1767746943021,0.09558815,93178.0,93164.0,0.010738]
[1767746943222,0.09132,93177.0,93161.0,0.010738]
[1767746943513,0.18690815,93177.0,93161.0,0.010738]
[1767746943921,0.18690815,93177.0,93155.0,0.09525768]
[1767746944118,0.18690815,93177.0,93164.0,0.010738]
[1767746944314,0.18690815,93177.0,93155.0,0.09525768]
[1767746944315,0.09067004,93174.0,93157.0,0.010739]
[1767746944513,0.09067004,93170.0,93157.0,0.010739]
[1767746944818,0.09067004,93170.0,93150.0,0.18507367]
[1767746945615,0.18199004,93170.0,93158.0,0.010739]
[1767746945918,0.18199004,93170.0,93155.0,0.010739]
[1767746946120,0.09132,93170.0,93150.0,0.18507367]
[1767746946322,0.18199004,93170.0,93158.0,0.010739]
[1767746946712,0.09132,93170.0,93153.0,0.09525768]
[1767746946917,0.09132,93170.0,93165.0,0.010738]
[1767746947120,0.00214642,93179.0,93165.0,0.010738]
[1767746947320,0.09132,93178.0,93165.0,0.010738]
[1767746947517,0.18690815,93178.0,93165.0,0.010738]
[1767746947816,0.09558815,93177.0,93165.0,0.010738]
[1767746948218,0.09558815,93177.0,93155.0,0.09525768]
[1767746948526,0.09558815,93177.0,93164.0,0.010738]
[1767746948924,0.18625819,93174.0,93155.0,0.09525768]
[1767746949112,0.09558815,93174.0,93155.0,0.09525768]
[1767746949525,0.09558815,93174.0,93164.0,0.010738]
[1767746949726,0.18690815,93178.0,93167.0,0.010738]
[1767746949923,0.09558815,93177.0,93167.0,0.010738]
[1767746950721,0.09558815,93177.0,93164.0,0.010738]
[1767746950920,0.09132,93176.0,93164.0,0.010738]
[1767746951129,0.09558815,93175.0,93164.0,0.010738]
[1767746951318,0.09558815,93175.0,93155.0,0.18507367]
[1767746951729,0.09558815,93175.0,93164.0,0.010738]
[1767746952919,0.09558815,93175.0,93163.0,0.010738]
[1767746953125,0.09558815,93173.0,93155.0,0.09525768]
[1767746953427,0.09558815,93173.0,93153.0,0.010739]
[1767746953628,0.09558815,93173.0,93164.0,0.010738]
[1767746954727,0.0949129,93172.0,93154.0,0.09525768]
[1767746954925,0.0949129,93164.0,93153.0,0.010739]
[1767746955228,0.0949129,93164.0,93156.0,0.010739]
[1767746955430,0.09132,93166.0,93156.0,0.010739]
[1767746955922,0.09132,93166.0,93153.0,0.010739]
[1767746956125,0.0949129,93165.0,93153.0,0.010739]
[1767746956632,0.10466275,93165.0,93153.0,0.010739]
[1767746958224,0.10466275,93165.0,93155.0,0.010739]
[1767746958430,0.10466275,93165.0,93144.0,0.08981599]
[1767746958628,0.10466275,93165.0,93154.0,0.010739]
[1767746958830,0.10466275,93165.0,93155.0,0.010739]
[1767746959527,0.10466275,93165.0,93153.0,0.010739]
[1767746959726,0.00231676,93164.0,93150.0,0.01074]
[1767746960330,0.00231676,93164.0,93152.0,0.010739]
[1767746960636,0.00231676,93164.0,93144.0,0.09525768]
[1767746960833,0.0949129,93165.0,93155.0,0.010739]
[1767746961033,0.09132,93166.0,93156.0,0.010739]
[1767746961234,0.00129009,93171.0,93156.0,0.010739]
[1767746961435,0.09132,93170.0,93158.0,0.010739]
[1767746962231,0.09132,93170.0,93136.0,0.07097314]
[1767746962232,0.18134008,93168.0,93111.0,0.09525768]
[1767746962539,0.18134008,93168.0,93103.0,0.08993149]
[1767746962540,0.0949129,93140.0,93120.0,0.09067004]
[1767746962738,0.08211576,93142.0,93120.0,0.09067004]
[1767746963436,0.010741,93138.0,93120.0,0.09067004]
[1767746963636,0.18625819,93140.0,93117.0,0.09132]
[1767746964336,0.010741,93139.0,93120.0,0.09067004]
[1767746964529,0.010741,93139.0,93117.0,0.09132]
[1767746964530,0.09521578,93133.0,93117.0,0.09132]
[1767746964730,0.09067004,93130.0,93117.0,0.102063]
[1767746964936,0.0949129,93134.0,93117.0,0.102063]
[1767746964937,0.09521578,93138.0,93119.0,0.010743]
[1767746965132,0.09521578,93138.0,93117.0,0.09132]
[1767746965336,0.09521578,93138.0,93120.0,0.10141304]
[1767746965539,0.09521578,93138.0,93120.0,0.010743]
[1767746965729,0.09521578,93138.0,93118.0,0.09525768]
[1767746966336,0.18558294,93140.0,93118.0,0.18507367]
[1767746966529,0.0949129,93140.0,93122.0,0.010743]
[1767746966728,0.18558294,93140.0,93122.0,0.010743]
[1767746967135,0.18558294,93140.0,93119.0,0.10600068]
[1767746967136,0.08618317,93139.0,93119.0,0.10600068]
[1767746967336,0.08618317,93138.0,93117.0,0.09132]
[1767746967639,0.08618317,93138.0,93118.0,0.010743]
[1767746967640,0.08618317,93137.0,93118.0,0.010743]
[1767746967832,0.08618317,93136.0,93117.0,0.09132]
[1767746968037,0.08618317,93136.0,93118.0,0.010743]
[1767746968238,0.09067004,93130.0,93117.0,0.09132]
[1767746968939,0.09589647,93128.0,93114.0,0.09136]
[1767746970433,0.08515447,93128.0,93114.0,0.09136]
[1767746971228,0.09283473,93127.0,93106.0,0.09525768]
[1767746971434,0.09067004,93120.0,93107.0,0.09136]
[1767746971741,0.010742,93129.0,93110.0,0.09566359]
[1767746972239,0.09067004,93130.0,93110.0,0.10640759]
[1767746972737,0.08209273,93132.0,93112.0,0.09566359]
[1767746973040,0.09067004,93130.0,93112.0,0.09566359]
[1767746973234,0.010742,93129.0,93112.0,0.09566359]
[1767746973539,0.09136,93134.0,93107.0,0.102105]
[1767746973540,0.09067004,93122.0,93107.0,0.09136]
[1767746973730,0.07995233,93125.0,93107.0,0.09136]
[1767746973931,0.09067004,93120.0,93107.0,0.09136]
[1767746974636,0.07995233,93125.0,93107.0,0.09136]
[1767746974843,0.09067004,93120.0,93108.0,0.010745]
[1767746975140,0.09067004,93120.0,93107.0,0.09136]
[1767746975846,0.07995233,93125.0,93107.0,0.09136]
[1767746976035,0.09067004,93120.0,93107.0,0.09136]
[1767746976231,0.09067004,93120.0,93110.0,0.010744]
[1767746976938,0.087937,93129.0,93111.0,0.010744]
[1767746977242,0.077195,93129.0,93110.0,0.010744]
[1767746977642,0.077195,93129.0,93112.0,0.010744]
[1767746978537,0.0965552,93129.0,93111.0,0.010744]
[1767746978741,0.0965552,93129.0,93109.0,0.09566359]
[1767746978941,0.0965552,93129.0,93111.0,0.010744]
[1767746979336,0.08539437,93128.0,93111.0,0.010744]
[1767746979537,0.09067004,93121.0,93108.0,0.010744]
[1767746982145,0.07333255,93120.0,93108.0,0.010744]
[1767746983349,0.07333255,93120.0,93107.0,0.09136]
[1767746983549,0.07333255,93120.0,93110.0,0.010744]
[1767746983842,0.09067004,93121.0,93103.0,0.0001155]
[1767746984242,0.09067004,93121.0,93112.0,0.010744]
[1767746984545,0.09067004,93121.0,93109.0,0.010744]
[1767746985248,0.06948963,93120.0,93103.0,0.09577909]
[1767746985447,0.06948963,93120.0,93100.0,0.08032393]
[1767746986450,0.0891285,93119.0,93098.0,0.09136]
[1767746986951,0.0891285,93119.0,93106.0,0.010745]
[1767746987641,0.0001082,93119.0,93108.0,0.010745]
[1767746987841,0.0001082,93119.0,93106.0,0.010745]
[1767746990150,0.0001082,93119.0,93100.0,0.09318484]
[1767746990542,0.0001082,93119.0,93100.0,0.18884843]
[1767746990941,0.0001082,93119.0,93101.0,0.09318484]
[1767746991152,0.0001082,93119.0,93107.0,0.010745]
[1767746991350,0.09067004,93117.0,93100.0,0.09566359]
[1767746991552,0.09067004,93110.0,93106.0,0.010745]
[1767746991854,0.09115733,93114.0,93102.0,0.010745]
[1767746992157,0.09067004,93112.0,93104.0,0.008855]
[1767746992447,0.09067004,93114.0,93091.0,0.010746]
[1767746992653,0.09782764,93115.0,93104.0,0.010745]
[1767746993757,0.09782764,93115.0,93106.0,0.010745]
[1767746993951,0.09782764,93115.0,93096.0,0.09318484]
[1767746994253,0.09115733,93092.0,93059.0,0.01075]
[1767746994456,0.18898497,93091.0,93068.0,0.010749]
[1767746994757,0.18898497,93091.0,93079.0,0.010748]
[1767746994952,0.09782764,93090.0,93073.0,0.010749]
[1767746995255,0.09791629,93089.0,93073.0,0.010749]
[1767746995642,0.09782764,93087.0,93073.0,0.010749]
[1767746995843,0.09115733,93086.0,93073.0,0.010749]
[1767746996042,0.09782764,93085.0,93073.0,0.010749]
[1767746996250,0.09115733,93084.0,93074.0,0.010748]
[1767746996457,0.010746,93094.0,93063.0,0.09318484]
[1767746996458,8.678e-05,93083.0,93080.0,0.010748]
[1767746996647,0.09136,93089.0,93084.0,0.010747]
[1767746996846,0.09115733,93100.0,93074.0,0.18884843]
[1767746997053,0.09115733,93109.0,93078.0,0.09318484]
[1767746997357,0.09115733,93103.0,93080.0,0.010748]
[1767746997556,0.09115733,93101.0,93073.0,0.09318484]
[1767746997754,0.09136,93100.0,93080.0,0.010748]
[1767746997954,0.09115733,93099.0,93080.0,0.010748]
[1767746998459,0.09049347,93097.0,93084.0,0.010747]
[1767746998650,0.09049347,93097.0,93080.0,0.010748]
[1767746998850,0.18336381,93097.0,93082.0,0.010747]
[1767746999853,0.18336381,93087.0,93065.0,0.09136]
[1767747000162,0.09287034,93085.0,93071.0,0.00214849]
[1767747000361,0.09287034,93085.0,93076.0,0.010748]
[1767747000556,0.00010047,93086.0,93078.0,0.010748]
[1767747000864,0.00010047,93086.0,93077.0,0.010748]
[1767747001664,0.00010047,93086.0,93079.0,0.010748]
[1767747002364,0.00010047,93086.0,93071.0,0.01289749]
[1767747002557,0.00010047,93086.0,93073.0,0.010749]
[1767747002754,0.00010047,93086.0,93079.0,0.010748]
[1767747002957,0.0914,93095.0,93076.0,0.09774029]
[1767747003366,0.0914,93095.0,93082.0,0.010748]
[1767747003561,0.09477247,93115.0,93093.0,0.09774029]
[1767747003758,0.010745,93108.0,93089.0,0.09774029]
[1767747003964,0.010745,93108.0,93088.0,0.09220243]
[1767747004466,0.09867538,93098.0,93079.0,0.0914]
[1767747004658,0.19344785,93095.0,93076.0,0.010748]
[1767747004859,0.19344785,93094.0,93073.0,0.010749]
[1767747005059,0.19344785,93094.0,93073.0,0.01289749]
[1767747005974,0.19344785,93092.0,93073.0,0.00214849]
[1767747006161,0.19344785,93091.0,93073.0,0.00214849]
[1767747006667,0.19344785,93090.0,93073.0,0.00214849]
[1767747006973,0.19344785,93089.0,93076.0,0.010748]
[1767747007356,0.19344785,93089.0,93073.0,0.00214849]
[1767747007674,0.09477247,93089.0,93073.0,0.00214849]
[1767747008371,0.09477247,93089.0,93073.0,0.01289749]
[1767747008568,0.20419385,93094.0,93073.0,0.01289749]
[1767747008762,0.19344785,93089.0,93073.0,0.01289749]
[1767747009060,0.09477247,93089.0,93073.0,0.01289749]
[1767747009477,0.09477247,93089.0,93073.0,0.00214849]
[1767747009666,0.19344785,93085.0,93073.0,0.00214849]
[1767747009969,0.19344785,93085.0,93063.0,0.0914]
[1767747009970,0.01079192,93084.0,93065.0,0.01075]
[1767747010175,0.10552047,93078.0,93063.0,0.0914]
[1767747010469,0.09477247,93078.0,93064.0,0.01075]
[1767747010774,0.09477247,93078.0,93055.0,0.18994272]
[1767747010775,0.09477247,93078.0,93056.0,0.0914]
[1767747011159,0.0914,93086.0,93053.0,0.010751]
[1767747011160,0.19344785,93073.0,93053.0,0.010751]
[1767747011372,0.19344785,93070.0,93055.0,0.010751]
[1767747011780,0.19344785,93069.0,93055.0,0.010751]
[1767747012165,0.19344785,93067.0,93049.0,0.010751]
[1767747012362,0.19344785,93067.0,93051.0,0.010751]
[1767747012778,0.19344785,93065.0,93051.0,0.010751]
[1767747013263,0.09477247,93064.0,93058.0,0.01075]
[1767747013466,0.107434,93161.0,93058.0,0.01075]
[1767747013467,0.0914,93072.0,93058.0,0.18994272]
[1767747013673,0.0914,93072.0,93059.0,0.40000094]